[Event "11th LCC FIDE Open 2019"]
[Site "London"]
[Date "2019.11.30"]
[Round "2.29"]
[White "Czerw, Dawid"]
[Black "Royal, Shreyas"]
[Result "1-0"]
[ECO "E05"]
[WhiteElo "2255"]
[BlackElo "1941"]
[Annotator "NA"]
[PlyCount "141"]
[EventDate "2019.11.29"]
[EventType "swiss"]
[EventCountry "ENG"]
[SourceTitle "playchess.com"]
[Source "ChessBase"]
[SourceQuality "1"]
[TimeControl "40/5400+30:1800+30"]

1. d4 {[%emt 0:00:00]} d5 {[%emt 0:00:00]} 2. c4 {[%emt 0:00:00]} e6 {[%emt 0:00:43]} 3. Nf3 {[%emt 0:00:00]} Nf6 {[%emt 0:01:59]} 4. g3 {[%emt 0:00:00]} Be7 {[%emt 0:01:32]} 5. Bg2 {[%emt 0:00:05]} O-O {[%emt 0:00:56]} 6. O-O {[%emt 0:00:22]} dxc4 {[%emt 0:01:18]} 7. Qc2 {[%emt 0:00:18]} a6 {[%emt 0:01:19]} 8. a4 {[%emt 0:01:25]} Bd7 {[%emt 0:04:17]} 9. Qxc4 {[%emt 0:02:59]} Bc6 {[%emt 0:00:31]} 10. Bg5 {[%emt 0:01:16]} Nbd7 {[%emt 0:02:12]} 11. Nc3 {[%emt 0:04:39]} h6 {[%emt 0:05:35]} 12. Bxf6 {[%emt 0:08:18]} Nxf6 {[%emt 0:00:43]} 13. b4 {[%emt 0:15:00]} Bd5 {[%emt 0:07:57] E05: Open Catalan: 5 Nf3 Be7} 14. Nxd5 {[%emt 0:00:46]} exd5 {[%emt 0:00:05]} 15. Qb3 {[%emt 0:01:47]} Bd6 {[%emt 0:07:32]} 16. e3 {[%emt 0:03:49]} Qe7 {[%emt 0:01:16]} 17. b5 {[%emt 0:07:40] [#]} a5 $146 {[%emt 0:03:22]} ({Predecessor:} 17... axb5 18. axb5 g6 19. Ra2 Qe6 20. Rfa1 Rab8 21. Ra7 {½-½ (39) Cheparinov,I (2667)-Dominguez Perez,L (2750) Hengshui 2019}) 18. Ne1 {[%emt 0:02:25]} c6 {[%emt 0:07:03]} 19. Nd3 {[%emt 0:05:52]} Ne4 $14 {[%emt 0:09:54]} 20. bxc6 {[%emt 0:06:09]} bxc6 {[%emt 0:00:29]} 21. Qc2 {[%emt 0:02:40]} Rac8 {[%emt 0:04:04]} 22. Rab1 {[%emt 0:07:19]} c5 {[%emt 0:02:54]} 23. dxc5 {[%emt 0:02:05]} Bxc5 {[%emt 0:00:43]} 24. Nxc5 {[%emt 0:02:46]} Rxc5 {[%emt 0:00:28]} 25. Qd3 {[%emt 0:02:48]} Rfc8 {[%emt 0:06:37]} 26. Bh3 {[%emt 0:02:41]} Rd8 {[%emt 0:01:16]} 27. Rbc1 {[%emt 0:04:47]} Rxc1 {[%emt 0:01:01]} 28. Rxc1 {[%emt 0:00:02]} Qf6 {[%emt 0:00:45]} 29. Qc2 {[%emt 0:01:18]} Ng5 {[%emt 0:01:32]} 30. Bg2 {[%emt 0:01:12]} d4 {[%emt 0:00:03]} 31. exd4 {[%emt 0:04:22]} Qxd4 {[%emt 0:00:14]} 32. h4 {[%emt 0:04:03]} Ne6 {[%emt 0:00:30]} 33. Bh3 {[%emt 0:01:35]} Qd5 {[%emt 0:00:35]} 34. Bxe6 {[%emt 0:01:11]} Qxe6 {[%emt 0:00:09]} 35. Qc7 {[%emt 0:00:45]} Qd5 {[%emt 0:00:28]} 36. Qc5 {[%emt 0:01:17]} Qd2 {[%emt 0:00:39]} 37. Kg2 {[%emt 0:01:17]} Qd5+ {[%emt 0:00:07]} 38. Kg1 {[%emt 0:01:02]} Qd2 {[%emt 0:00:06]} 39. Kg2 {[%emt 0:00:31]} Qd5+ {[%emt 0:00:05]} 40. Qxd5 {[%emt 0:01:17]} Rxd5 {[%emt 0:00:09]} 41. Rc8+ {[%emt 0:30:52]} Kh7 {[%emt 0:30:07]} 42. Ra8 {[%emt 0:00:55]} g5 {[%emt 0:02:27]} 43. hxg5 {[%emt 0:00:00]} hxg5 {[%emt 0:00:00]} 44. Kf3 {[%emt 0:00:00]} Re5 {[%emt 0:00:00]} 45. Rb8 {[%emt 0:00:00]} Kg7 {[%emt 0:00:00]} 46. Rb6 {[%emt 0:00:00]} Rc5 {[%emt 0:00:00]} 47. Ra6 {[%emt 0:00:00]} Re5 {[%emt 0:00:00]} 48. Kg4 {[%emt 0:00:00]} Re4+ {[%emt 0:00:00]} 49. Kxg5 {[%emt 0:00:00]} Rxa4 {[%emt 0:00:00]} 50. f4 {[%emt 0:00:00]} Ra3 {[%emt 0:01:35]} 51. g4 {[%emt 0:00:00]} Ra4 {[%emt 0:00:02]} 52. Ra7 {[%emt 0:00:00]} Kf8 {[%emt 0:01:14]} 53. f5 {[%emt 0:00:00]} Ke8 {[%emt 0:01:02]} 54. Kf6 {[%emt 0:00:00]} Rxg4 {[%emt 0:00:20]} 55. Rxa5 {[%emt 0:00:00]} Rf4 {[%emt 0:01:27]} 56. Ra8+ {[%emt 0:00:00]} Kd7 {[%emt 0:00:03]} 57. Ra7+ {[%emt 0:00:00]} Ke8 {[%emt 0:00:06]} 58. Ra8+ {[%emt 0:00:00]} Kd7 {[%emt 0:00:19]} 59. Rf8 {[%emt 0:01:27]} Rf1 {[%emt 0:01:20]} 60. Rxf7+ {[%emt 0:00:00]} Ke8 {[%emt 0:00:04]} 61. Rh7 {[%emt 0:00:00]} Rf2 {[%emt 0:00:21]} 62. Rh8+ {[%emt 0:00:00]} Kd7 {[%emt 0:00:03]} 63. Rf8 {[%emt 0:00:32]} Rg2 {[%emt 0:00:27]} 64. Kf7 {[%emt 0:00:30]} Rg1 {[%emt 0:00:39]} 65. f6 {[%emt 0:00:19]} Kd6 {[%emt 0:00:20]} 66. Re8 {[%emt 0:00:17]} Kd7 {[%emt 0:00:09]} 67. Re2 {[%emt 0:00:07]} Rf1 {[%emt 0:00:07]} 68. Kg7 {[%emt 0:00:07]} Rg1+ {[%emt 0:00:08]} 69. Kf8 {[%emt 0:00:05]} Kd6 {[%emt 0:00:09]} 70. f7 {[%emt 0:00:29]} Rg4 {[%emt 0:00:16]} 71. Ke8 {[%emt 0:00:36]} 1-0

[Event "11th LCC FIDE Open 2019"]
[Site "London"]
[Date "2019.11.30"]
[Round "2.30"]
[White "Blackburn, Jonathan Lb"]
[Black "Saidmurodov, Shahjahon"]
[Result "1-0"]
[ECO "A56"]
[WhiteElo "2240"]
[BlackElo "1782"]
[Annotator "NA"]
[PlyCount "147"]
[EventDate "2019.11.29"]
[EventType "swiss"]
[EventCountry "ENG"]
[SourceTitle "playchess.com"]
[Source "ChessBase"]
[SourceQuality "1"]
[TimeControl "40/5400+30:1800+30"]

1. d4 {[%emt 0:00:00]} Nf6 {[%emt 0:00:16]} 2. c4 {[%emt 0:00:00]} c5 {[%emt 0:01:00]} 3. d5 {[%emt 0:00:00]} e5 {[%emt 0:00:03]} 4. Nc3 {[%emt 0:00:00]} d6 {[%emt 0:00:08]} 5. e4 {[%emt 0:00:12]} Be7 {[%emt 0:00:06]} 6. g3 {[%emt 0:00:23]} Nbd7 {[%emt 0:01:40]} 7. Bg2 {[%emt 0:00:55]} O-O {[%emt 0:02:34]} 8. Nf3 {[%emt 0:02:31]} Ne8 {[%emt 0:01:01]} 9. Qe2 {[%emt 0:01:56]} a6 {[%emt 0:03:06]} 10. a4 {[%emt 0:03:12]} Nc7 {[%emt 0:04:59]} 11. h4 {[%emt 0:04:16]} Nf6 {[%emt 0:03:57]} 12. Nh2 {[%emt 0:01:39]} Bd7 {[%emt 0:09:46]} 13. a5 {[%emt 0:03:53]} Rb8 {[%emt 0:03:17]} 14. Nf1 {[%emt 0:13:34]} b5 {[%emt 0:06:26]} 15. axb6 $1 {[%emt 0:00:10]} Rxb6 $16 {[%emt 0:00:11]} 16. Ne3 {[%emt 0:05:19]} a5 {[%emt 0:07:53]} 17. g4 {[%emt 0:07:45]} g6 {[%emt 0:04:34]} 18. Bf3 {[%emt 0:06:25]} Na6 {[%emt 0:10:44]} 19. g5 {[%emt 0:02:17]} Ne8 {[%emt 0:00:21]} 20. Ng4 {[%emt 0:06:51]} Bxg4 {[%emt 0:02:02]} 21. Bxg4 {[%emt 0:00:05]} Nec7 {[%emt 0:02:59]} 22. Kd1 {[%emt 0:11:30]} Rb3 {[%emt 0:16:37]} 23. Qc2 {[%emt 0:04:26]} Qb8 {[%emt 0:02:03]} 24. f3 {[%emt 0:00:35]} h5 {[%emt 0:05:59]} 25. gxh6 {[%emt 0:00:17]} Kh7 {[%emt 0:00:08]} 26. Rxa5 {[%emt 0:02:02]} Rb7 {[%emt 0:06:33]} 27. Ra3 {[%emt 0:08:49]} Nb4 {[%emt 0:00:23]} 28. Qe2 {[%emt 0:00:10]} Ra7 {[%emt 0:01:57]} 29. h5 {[%emt 0:06:44]} Rb7 {[%emt 0:01:58]} 30. Rg1 {[%emt 0:01:29]} Rg8 {[%emt 0:01:05]} 31. f4 {[%emt 0:02:59]} exf4 {[%emt 0:00:29]} 32. hxg6+ {[%emt 0:00:28]} fxg6 {[%emt 0:00:08]} 33. Bxf4 {[%emt 0:00:34]} Nba6 {[%emt 0:00:59]} 34. Bc1 {[%emt 0:02:06]} Bf6 {[%emt 0:00:37]} 35. Bd7 {[%emt 0:01:57]} Qd8 {[%emt 0:00:51]} 36. Qg4 {[%emt 0:00:37]} Qe7 {[%emt 0:00:36]} 37. Be6 {[%emt 0:01:00]} Nxe6 {[%emt 0:00:09]} 38. dxe6 {[%emt 0:00:03]} Bxc3 {[%emt 0:00:28]} 39. Rxc3 {[%emt 0:01:04]} Nc7 {[%emt 0:00:16]} 40. Rf1 {[%emt 0:00:52]} Qxe6 {[%emt 0:00:48]} 41. Qxe6 {[%emt 0:08:39]} Nxe6 {[%emt 0:00:17]} 42. Rf6 {[%emt 0:00:32]} Nd4 {[%emt 0:01:41]} 43. Rg3 {[%emt 0:02:49]} Re7 {[%emt 0:05:03]} 44. Bg5 {[%emt 0:04:08]} Ne6 {[%emt 0:00:33]} 45. Bd2 {[%emt 0:00:57]} g5 {[%emt 0:04:23]} 46. Rf5 {[%emt 0:03:26]} Kxh6 {[%emt 0:03:39]} 47. Rh3+ {[%emt 0:05:39]} Kg6 {[%emt 0:00:12]} 48. Rhf3 {[%emt 0:00:08]} Kh5 {[%emt 0:08:22]} 49. Rh3+ {[%emt 0:00:10]} Kg6 {[%emt 0:00:06]} 50. Rhf3 {[%emt 0:00:28]} Kh5 {[%emt 0:00:14]} 51. Rh3+ {[%emt 0:03:25]} Kg6 {[%emt 0:00:12]} 52. Rd3 {[%emt 0:00:09]} Nd4 {[%emt 0:07:44]} 53. Rxg5+ {[%emt 0:00:49]} Kf7 {[%emt 0:00:10]} 54. Rxg8 {[%emt 0:00:19]} Kxg8 {[%emt 0:00:05]} 55. Bc3 {[%emt 0:00:59]} Rxe4 {[%emt 0:00:34]} 56. Bxd4 {[%emt 0:00:06]} cxd4 {[%emt 0:00:07]} 57. Kd2 {[%emt 0:00:09]} Kf7 {[%emt 0:00:08]} 58. Rh3 {[%emt 0:00:20]} d5 {[%emt 0:02:37]} 59. c5 {[%emt 0:00:55]} d3 {[%emt 0:03:27]} 60. Rxd3 {[%emt 0:00:58]} Rb4 {[%emt 0:00:28]} 61. Rxd5 {[%emt 0:02:54]} Rxb2+ {[%emt 0:00:09]} 62. Kc3 {[%emt 0:00:04]} Rb1 {[%emt 0:00:43]} 63. Kc4 {[%emt 0:00:06]} Ke7 {[%emt 0:00:21]} 64. c6 {[%emt 0:00:27]} Rc1+ {[%emt 0:00:36]} 65. Kb5 {[%emt 0:00:04]} Rb1+ {[%emt 0:00:28]} 66. Kc5 {[%emt 0:00:49]} Rb2 {[%emt 0:00:29]} 67. c7 {[%emt 0:00:12]} Rb1 {[%emt 0:00:58]} 68. Kc6 {[%emt 0:00:04]} Rc1+ {[%emt 0:00:13]} 69. Kb7 {[%emt 0:00:05]} Rb1+ {[%emt 0:00:09]} 70. Kc8 {[%emt 0:00:02]} Rb2 {[%emt 0:00:55]} 71. Rd1 {[%emt 0:00:06]} Re2 {[%emt 0:00:46]} 72. Rb1 {[%emt 0:01:19]} Kd6 {[%emt 0:00:33]} 73. Kb8 {[%emt 0:00:10]} Re8+ {[%emt 0:00:30]} 74. c8=Q {[%emt 0:00:10]} 1-0

[Event "11th LCC FIDE Open 2019"]
[Site "London"]
[Date "2019.11.30"]
[Round "2.31"]
[White "Pellicoro, Nathalie"]
[Black "Lee, Qing Aun"]
[Result "0-1"]
[ECO "B23"]
[WhiteElo "1967"]
[BlackElo "2228"]
[Annotator "NA"]
[PlyCount "80"]
[EventDate "2019.11.29"]
[EventType "swiss"]
[EventCountry "ENG"]
[SourceTitle "playchess.com"]
[Source "ChessBase"]
[SourceQuality "1"]
[TimeControl "40/5400+30:1800+30"]

1. e4 {[%emt 0:57:21]} c5 {[%emt 0:00:55]} 2. Nc3 {[%emt 0:00:19]} e6 {[%emt 0:00:12]} 3. d3 {[%emt 0:00:21]} d5 {[%emt 0:01:16]} 4. g3 {[%emt 0:00:39]} Nc6 {[%emt 0:04:09]} 5. exd5 {[%emt 0:01:08]} exd5 {[%emt 0:00:12]} 6. Bg2 {[%emt 0:00:16]} Be6 {[%emt 0:06:13]} 7. Nge2 {[%emt 0:03:16]} Nf6 {[%emt 0:04:13]} 8. O-O {[%emt 0:05:55]} d4 {[%emt 0:07:41]} 9. Ne4 {[%emt 0:12:56]} Nxe4 {[%emt 0:00:11]} 10. dxe4 {[%emt 0:00:16]} Qd7 {[%emt 0:01:32]} 11. Nf4 {[%emt 0:04:03]} O-O-O $11 {[%emt 0:11:24]} 12. Nxe6 {[%emt 0:13:31]} Qxe6 {[%emt 0:00:26]} 13. f4 {[%emt 0:05:37]} c4 {[%emt 0:03:02]} 14. e5 {[%emt 0:03:48]} f5 {[%emt 0:04:20]} 15. exf6 {[%emt 0:07:35]} gxf6 {[%emt 0:01:46]} 16. Qh5 {[%emt 0:01:42]} Kb8 {[%emt 0:02:11]} 17. f5 {[%emt 0:01:06]} Qd7 {[%emt 0:00:40]} 18. Bf4+ {[%emt 0:00:58]} Bd6 {[%emt 0:02:47]} 19. Bxd6+ {[%emt 0:03:16]} Qxd6 {[%emt 0:00:01]} 20. Qf7 {[%emt 0:01:22]} h5 {[%emt 0:15:14]} 21. Qxc4 {[%emt 0:06:59]} Ne5 {[%emt 0:02:03]} 22. Qb3 {[%emt 0:03:29]} Qc7 {[%emt 0:02:22]} 23. Rf4 {[%emt 0:05:50]} Rd6 {[%emt 0:04:12]} 24. Rd1 {[%emt 0:10:17]} Rhd8 {[%emt 0:00:58]} 25. Qa4 {[%emt 0:01:21]} d3 {[%emt 0:04:09]} 26. c3 {[%emt 0:00:49]} Qb6+ {[%emt 0:02:13]} 27. Kh1 {[%emt 0:00:29]} Ng4 {[%emt 0:00:52]} 28. Rd2 {[%emt 0:00:29]} R6d7 {[%emt 0:04:42]} 29. Qb3 {[%emt 0:00:31]} Qe3 {[%emt 0:02:08]} 30. Qd1 {[%emt 0:00:38]} Re8 {[%emt 0:02:33]} 31. Rf3 {[%emt 0:00:01]} Qc5 {[%emt 0:02:08]} 32. h3 {[%emt 0:01:05]} Rde7 {[%emt 0:02:18]} 33. Qg1 {[%emt 0:00:29]} Qc7 {[%emt 0:04:07]} 34. Rfxd3 {[%emt 0:00:29]} Ne3 {[%emt 0:00:09]} 35. Qf2 {[%emt 0:00:26]} h4 {[%emt 0:01:07]} 36. g4 {[%emt 0:00:34]} Nc4 {[%emt 0:00:20]} 37. Rd1 {[%emt 0:00:25]} a6 {[%emt 0:02:07]} 38. Bf3 {[%emt 0:00:29]} Nxb2 {[%emt 0:01:06]} 39. Qxb2 {[%emt 0:00:42]} Re1+ {[%emt 0:00:06]} 40. Rxe1 {[%emt 0:00:26]} Rxe1+ 0-1

[Event "11th LCC FIDE Open 2019"]
[Site "London"]
[Date "2019.11.30"]
[Round "2.32"]
[White "Hebden, Mark L"]
[Black "Auyeung, Chi Hung Jonathan"]
[Result "1-0"]
[ECO "A43"]
[WhiteElo "2436"]
[BlackElo "1770"]
[Annotator "NA"]
[PlyCount "89"]
[EventDate "2019.11.29"]
[EventType "swiss"]
[EventCountry "ENG"]
[SourceTitle "playchess.com"]
[Source "ChessBase"]
[SourceQuality "1"]
[TimeControl "40/5400+30:1800+30"]

1. d4 {[%emt 0:00:00]} c5 {[%emt 0:00:00]} 2. d5 {[%emt 0:00:00]} Nf6 {[%emt 0:00:02]} 3. Nc3 {[%emt 0:00:00]} d6 {[%emt 0:01:02]} 4. e4 {[%emt 0:00:22]} g6 {[%emt 0:00:15]} 5. Nf3 {[%emt 0:00:53]} Bg7 {[%emt 0:00:28]} 6. Be2 {[%emt 0:00:19]} O-O {[%emt 0:00:46]} 7. O-O {[%emt 0:00:09]} e6 {[%emt 0:00:37]} 8. Nd2 {[%emt 0:04:02]} exd5 {[%emt 0:05:43]} 9. exd5 {[%emt 0:00:06]} Re8 {[%emt 0:02:30]} 10. a4 {[%emt 0:00:42]} Na6 {[%emt 0:02:48]} 11. Nc4 {[%emt 0:05:16]} Nb4 {[%emt 0:12:01]} 12. Ne3 {[%emt 0:01:51]} b6 {[%emt 0:03:49]} 13. Bb5 {[%emt 0:03:51]} Re7 {[%emt 0:11:13]} 14. Na2 {[%emt 0:03:19]} (14. Be2 $11) 14... Nxa2 {[%emt 0:17:22]} 15. Rxa2 {[%emt 0:00:20]} Bb7 {[%emt 0:01:51]} 16. Ra3 {[%emt 0:09:36]} a6 {[%emt 0:04:49]} 17. Bd3 {[%emt 0:03:56]} Nxd5 {[%emt 0:06:00]} 18. Nxd5 {[%emt 0:01:11]} Bxd5 $11 {[%emt 0:00:28]} 19. Bxg6 {[%emt 0:01:30]} hxg6 {[%emt 0:06:33]} 20. Qxd5 {[%emt 0:00:10]} Re5 {[%emt 0:01:24]} 21. Qb7 {[%emt 0:03:46]} Re7 {[%emt 0:04:25]} 22. Qf3 {[%emt 0:00:39]} Qe8 {[%emt 0:01:44]} 23. Rd3 {[%emt 0:01:02]} Re6 {[%emt 0:03:07]} 24. b3 {[%emt 0:01:57]} Ra7 {[%emt 0:01:15]} 25. Be3 {[%emt 0:01:33]} Rae7 {[%emt 0:02:28]} 26. g3 {[%emt 0:00:44]} b5 {[%emt 0:01:36]} 27. axb5 {[%emt 0:01:06]} Qxb5 {[%emt 0:01:11]} 28. c4 {[%emt 0:02:51]} Qb8 {[%emt 0:02:26]} 29. Rfd1 {[%emt 0:00:41]} Kh7 {[%emt 0:01:43]} 30. Qf4 {[%emt 0:02:51]} Qe8 {[%emt 0:02:14]} 31. Rxd6 {[%emt 0:09:32]} Re4 {[%emt 0:00:37]} 32. Rd8 {[%emt 0:04:04]} Qc6 {[%emt 0:01:46]} 33. Qd6 {[%emt 0:02:56]} Qb7 {[%emt 0:01:10]} 34. Rb8 {[%emt 0:01:53]} Be5 {[%emt 0:01:06]} 35. Rxb7 {[%emt 0:01:27]} Bxd6 {[%emt 0:00:09]} 36. Rb6 {[%emt 0:01:06]} Be5 {[%emt 0:00:46]} 37. Bxc5 {[%emt 0:01:26]} Rc7 {[%emt 0:00:21]} 38. Bd6 {[%emt 0:07:55]} Rd7 {[%emt 0:00:21]} 39. Rxa6 {[%emt 0:01:10]} Bd4 {[%emt 0:00:51]} 40. Kf1 {[%emt 0:02:49]} Bc5 {[%emt 0:00:30]} 41. Rd5 {[%emt 0:30:51]} Ba7 {[%emt 0:30:29]} 42. Ba3 {[%emt 0:06:31]} Rc7 {[%emt 0:00:32]} 43. c5 {[%emt 0:04:18]} Re8 {[%emt 0:00:30]} 44. c6 {[%emt 0:03:11]} Re6 {[%emt 0:00:28]} 45. Bd6 {[%emt 0:00:33]} 1-0

[Event "11th LCC FIDE Open 2019"]
[Site "London"]
[Date "2019.11.30"]
[Round "2.33"]
[White "Yoon, Jacob D"]
[Black "Maze, Sebastien"]
[Result "0-1"]
[ECO "D00"]
[WhiteElo "2037"]
[BlackElo "2541"]
[Annotator "ChessBase"]
[PlyCount "104"]
[EventDate "2019.11.29"]
[EventType "swiss"]
[EventCountry "ENG"]
[SourceTitle "playchess.com"]
[Source "ChessBase"]
[SourceQuality "1"]
[TimeControl "40/5400+30:1800+30"]

1. d4 {[%emt 0:00:00]} Nf6 {[%emt 0:03:23]} 2. Nc3 {[%emt 0:00:00]} d5 {[%emt 0:00:07]} 3. Bf4 {[%emt 0:00:00]} a6 {[%emt 0:00:16]} 4. Nf3 {[%emt 0:00:07]} e6 {[%emt 0:00:20]} 5. a3 {[%emt 0:00:16]} c5 {[%emt 0:00:19]} 6. e3 {[%emt 0:00:26]} Nbd7 {[%emt 0:01:13]} 7. Ne5 {[%emt 0:01:10]} b5 {[%emt 0:00:57]} 8. Be2 {[%emt 0:08:21]} Bb7 {[%emt 0:00:16]} 9. Bf3 {[%emt 0:01:08]} Rc8 {[%emt 0:01:40]} 10. O-O {[%emt 0:01:01]} Qb6 {[%emt 0:07:29]} 11. a4 {[%emt 0:07:03]} Nxe5 {[%emt 0:01:22]} 12. Bxe5 {[%emt 0:00:56]} Nd7 {[%emt 0:00:36]} 13. dxc5 {[%emt 0:05:50]} Bxc5 {[%emt 0:07:13]} 14. Bxg7 {[%emt 0:04:56]} Rg8 {[%emt 0:00:01]} 15. Bd4 {[%emt 0:00:33]} b4 {[%emt 0:00:05]} 16. a5 {[%emt 0:06:32]} Qc7 {[%emt 0:00:32]} 17. Na4 {[%emt 0:07:12]} Bxd4 {[%emt 0:21:07]} 18. exd4 {[%emt 0:06:07]} Qxc2 {[%emt 0:00:14]} 19. Qxc2 {[%emt 0:02:10]} Rxc2 {[%emt 0:00:05]} 20. Rac1 {[%emt 0:00:15]} Rc8 {[%emt 0:19:31]} 21. Rxc8+ {[%emt 0:01:43]} Bxc8 {[%emt 0:00:01]} 22. Rc1 {[%emt 0:00:33]} Ke7 {[%emt 0:00:02]} 23. g3 {[%emt 0:03:08]} Kd6 {[%emt 0:00:21]} 24. Be2 {[%emt 0:01:44]} Bb7 {[%emt 0:04:48]} 25. Bd3 {[%emt 0:04:58]} h6 {[%emt 0:02:46]} 26. f4 {[%emt 0:01:40]} f6 {[%emt 0:00:00]} 27. Be2 {[%emt 0:01:56]} Bc6 {[%emt 0:00:00]} 28. Nb6 {[%emt 0:09:53]} Nxb6 {[%emt 0:07:13]} 29. axb6 {[%emt 0:00:03]} Ra8 {[%emt 0:00:22]} 30. f5 {[%emt 0:05:50]} exf5 {[%emt 0:03:57]} 31. Kf2 {[%emt 0:01:39]} a5 {[%emt 0:00:30]} 32. Rc5 {[%emt 0:06:43]} a4 {[%emt 0:01:11]} 33. Bb5 {[%emt 0:00:26]} Bb7 {[%emt 0:01:02]} 34. Rc7 {[%emt 0:01:31]} a3 {[%emt 0:00:05]} 35. bxa3 {[%emt 0:04:24]} bxa3 {[%emt 0:00:02]} 36. Rc1 {[%emt 0:00:49]} a2 {[%emt 0:04:55]} 37. Ra1 {[%emt 0:00:02]} Ra3 {[%emt 0:00:08]} 38. Ke2 {[%emt 0:03:35]} Ba6 {[%emt 0:05:46]} 39. Bxa6 {[%emt 0:00:02]} Rxa6 {[%emt 0:00:02]} 40. Kf3 {[%emt 0:00:04]} Kc6 {[%emt 0:00:03]} 41. Kf4 {[%emt 0:30:02]} Kxb6 {[%emt 0:30:03]} 42. Kxf5 {[%emt 0:00:02]} Kb5 {[%emt 0:00:03]} 43. Kg6 {[%emt 0:00:04]} Kc4 {[%emt 0:00:03]} 44. Kxh6 {[%emt 0:00:04]} Kxd4 {[%emt 0:00:02]} 45. Kg6 {[%emt 0:00:01]} Kc3 {[%emt 0:00:05]} 46. h4 {[%emt 0:00:08]} Kb2 {[%emt 0:00:04]} 47. Rf1 {[%emt 0:00:05]} a1=Q {[%emt 0:00:07]} 48. Rxa1 {[%emt 0:00:03]} Kxa1 {[%emt 0:00:04]} 49. h5 {[%emt 0:00:03]} d4 {[%emt 0:00:03]} 50. h6 {[%emt 0:00:03]} f5+ {[%emt 0:00:29]} 51. Kxf5 {[%emt 0:00:03]} Rxh6 {[%emt 0:00:05]} 52. Ke4 {[%emt 0:00:07]} Rg6 {[%emt 0:00:05]} 0-1

[Event "11th LCC FIDE Open 2019"]
[Site "London"]
[Date "2019.11.30"]
[Round "2.34"]
[White "Mirzoyan, Davit T."]
[Black "Sarpotdar, Amogh"]
[Result "1-0"]
[ECO "D37"]
[WhiteElo "2388"]
[BlackElo "2015"]
[Annotator "NA"]
[PlyCount "41"]
[EventDate "2019.11.29"]
[EventType "swiss"]
[EventCountry "ENG"]
[SourceTitle "playchess.com"]
[Source "ChessBase"]
[SourceQuality "1"]
[TimeControl "40/5400+30:1800+30"]

1. Nf3 {[%emt 0:00:00]} d5 {[%emt 0:00:00]} 2. d4 {[%emt 0:00:53]} Nf6 {[%emt 0:02:07]} 3. c4 {[%emt 0:00:39]} e6 {[%emt 0:00:38]} 4. Nc3 {[%emt 0:00:05]} Be7 {[%emt 0:00:10]} 5. Bf4 $11 {[%emt 0:01:06]} O-O {[%emt 0:00:20]} 6. e3 {[%emt 0:00:04]} c5 {[%emt 0:00:32]} 7. dxc5 {[%emt 0:05:13]} Bxc5 {[%emt 0:00:38]} 8. a3 {[%emt 0:13:31]} a5 {[%emt 0:18:16]} 9. Rc1 {[%emt 0:12:56]} Nc6 {[%emt 0:13:57]} 10. cxd5 {[%emt 0:24:07]} exd5 {[%emt 0:00:26]} 11. h3 {[%emt 0:00:01]} Re8 {[%emt 0:18:31]} 12. Be2 {[%emt 0:05:09]} Be6 {[%emt 0:10:16]} 13. Nb5 {[%emt 0:05:45]} Bb6 {[%emt 0:00:32]} 14. Nd6 {[%emt 0:00:59]} Re7 {[%emt 0:00:13]} 15. Nxb7 {[%emt 0:00:22]} Rxb7 {[%emt 0:00:09]} 16. Rxc6 {[%emt 0:00:02]} Qe8 {[%emt 0:03:14]} 17. Rc1 {[%emt 0:10:55]} Ne4 {[%emt 0:06:51]} 18. O-O {[%emt 0:02:33]} Bd8 {[%emt 0:03:33]} 19. Rc2 {[%emt 0:01:23]} Bf6 {[%emt 0:01:22]} 20. Nd4 {[%emt 0:00:14]} Qa4 21. Rc8+ {[%emt 0:00:30]} 1-0

[Event "11th LCC FIDE Open 2019"]
[Site "London"]
[Date "2019.11.30"]
[Round "2.35"]
[White "Rogacewicz, Mikolaj"]
[Black "Sowray, Peter J"]
[Result "0-1"]
[ECO "E04"]
[WhiteElo "1921"]
[BlackElo "2316"]
[Annotator "NA"]
[PlyCount "50"]
[EventDate "2019.11.29"]
[EventType "swiss"]
[EventCountry "ENG"]
[SourceTitle "playchess.com"]
[Source "ChessBase"]
[SourceQuality "1"]
[TimeControl "40/5400+30:1800+30"]

1. d4 {[%emt 0:00:00]} d5 {[%emt 0:00:00]} 2. c4 {[%emt 0:00:01]} e6 {[%emt 0:00:10]} 3. Nf3 {[%emt 0:00:41]} Nf6 {[%emt 0:00:10]} 4. g3 {[%emt 0:00:15]} dxc4 {[%emt 0:00:09]} 5. Bg2 {[%emt 0:00:20]} a6 {[%emt 0:00:08]} 6. O-O {[%emt 0:00:54]} Nc6 {[%emt 0:00:08]} 7. e3 {[%emt 0:01:12]} Rb8 {[%emt 0:00:15]} 8. Qe2 {[%emt 0:03:29]} b5 {[%emt 0:01:07]} 9. b3 {[%emt 0:01:36]} cxb3 {[%emt 0:00:12]} 10. axb3 {[%emt 0:00:04]} Be7 {[%emt 0:01:02]} 11. Bb2 {[%emt 0:08:07]} O-O {[%emt 0:01:37]} 12. Rc1 {[%emt 0:00:44]} Bb7 {[%emt 0:00:52]} 13. Nc3 {[%emt 0:02:27]} Nb4 {[%emt 0:06:23]} 14. Na2 {[%emt 0:13:10]} Nxa2 {[%emt 0:07:41]} 15. Rxa2 {[%emt 0:00:05]} Nd5 {[%emt 0:01:13]} 16. e4 {[%emt 0:05:10]} Nb4 {[%emt 0:08:12]} 17. Raa1 $15 {[%emt 0:00:22]} c5 {[%emt 0:06:04]} 18. dxc5 {[%emt 0:04:32]} Qd3 {[%emt 0:00:35]} 19. Bf1 {[%emt 0:09:52]} Qxe4 {[%emt 0:06:45]} 20. Qxe4 {[%emt 0:01:57]} Bxe4 {[%emt 0:00:03]} 21. Ne5 {[%emt 0:00:17]} Rbc8 {[%emt 0:08:19]} 22. c6 {[%emt 0:10:08]} f6 {[%emt 0:04:36]} 23. Nd7 {[%emt 0:03:47]} Rfd8 {[%emt 0:02:16]} 24. Bh3 {[%emt 0:02:17]} Kf7 {[%emt 0:03:14]} 25. Ba3 {[%emt 0:04:11]} Rxc6 {[%emt 0:05:36]} 0-1